[Event "1st Jeddah Young Masters 2024"]
[Site "Jeddah"]
[Date "2024.01.27"]
[Round "6.5"]
[White "Rey Martinez, Jaime"]
[Black "Sadhwani, Raunak"]
[Result "0-1"]
[ECO "B22"]
[WhiteElo "2342"]
[BlackElo "2654"]
[Annotator "TA"]
[PlyCount "96"]
[EventDate "2024.01.24"]
[EventType "tourn"]
[SourceTitle "playchess.com"]
[Source "ChessBase"]
[SourceQuality "1"]
[TimeControl "5400+30"]

{[%evp 15,96,5,19,0,9,-5,0,0,0,9,18,-15,-16,-23,-12,-46,-52,-67,-25,-52,-36,-49,-45,-45,-43,-62,-56,-76,-75,-60,-37,-85,-84,-89,-85,-93,-91,-87,-83,-83,-87,-94,-80,-94,-93,-107,-54,-60,-12,-113,-85,-120,-122,-122,-112,-138,-132,-112,-431,-423,-416,-639,-697,-639,-715,-711,-252,-958,-881,-939,-705,-875,-776,-1102,-1097,-1095,-1026,-1684,-1870,-1954,-1840,-1770,-1640]} 1. e4 {[%emt 0:00:34]} c5 {[%emt 0:00:05]} 2. c3 {[%emt 0:01:37]} Nf6 {[%emt 0:01:23]} 3. e5 {[%emt 0:00:08]} Nd5 {[%emt 0:00:05]} 4. d4 {[%emt 0:00:46]} cxd4 {[%emt 0:00:05]} 5. cxd4 {[%emt 0:00:44]} d6 {[%emt 0:00:15]} 6. Nf3 {[%emt 0:01:28]} Nc6 {[%emt 0:00:08]} 7. Bc4 {[%emt 0:02:23]} Nb6 {[%emt 0:00:12]} 8. Bb5 {[%emt 0:01:34]} Bd7 {[%emt 0:00:10][%cal Oc6e5]} 9. exd6 {[%emt 0:05:20]} e6 {[%emt 0:00:36]} 10. Nc3 {[%emt 0:00:43]} a6 {[%emt 0:12:09]} 11. Bd3 {[%emt 0:02:17] The position is equal.} Bxd6 {[%emt 0:00:52]} 12. O-O {[%emt 0:02:04]} O-O {[%emt 0:01:08]} 13. Qe2 {[%emt 0:01:18]} Nb4 {[%emt 0:01:45]} 14. Bb1 {[%emt 0:01:40]} N4d5 {[%emt 0:06:29]} 15. Rd1 {[%emt 0:02:17]} Rc8 {[%emt 0:03:34]} 16. Ng5 {[%emt 0:07:38]} g6 {[%emt 0:01:24]} 17. Qf3 {[%emt 0:02:47]} Be7 {[%emt 0:01:46]} 18. Nge4 {[%emt 0:02:11]} Bc6 {[%emt 0:01:58] ...Nxc3 would now be deadly.} 19. Qe2 {[%emt 0:04:44]} (19. Bh6 Nxc3 20. bxc3 Re8) 19... Qc7 {[%emt 0:03:03]} 20. a3 {[%emt 0:06:49]} Rfd8 {[%emt 0:02:41]} 21. Ba2 {[%emt 0:03:04]} Nxc3 {[%emt 0:00:59]} 22. Nxc3 {[%emt 0:00:36]} Nd5 {[%emt 0:00:59]} (22... Na4 {seems wilder.} 23. Bh6 Bf6 24. Bb3 Nxc3 25. bxc3 Bd5) 23. Nxd5 {[%emt 0:04:03]} (23. Bxd5 $15 Bxd5 24. Bh6) 23... Bxd5 $17 {[%emt 0:00:12]} (23... exd5 $6 24. Qf3 $11) 24. Bxd5 {[%emt 0:00:33]} Rxd5 {[%emt 0:00:06]} ({Of course not} 24... exd5 25. Bd2 $11) 25. g3 {[%emt 0:01:04]} Qd7 {[%emt 0:05:38] Black is more active.} 26. Bf4 {[%emt 0:07:43]} Rxd4 {[%emt 0:06:15]} 27. Rxd4 {[%emt 0:05:34]} Qxd4 {[%emt 0:00:45]} 28. Rd1 {[%emt 0:00:05]} Qa4 {[%emt 0:00:08]} 29. Be5 {[%emt 0:00:26]} Rc5 {[%emt 0:07:33][%cal Oc5e5] aiming for ...Rxe5!} 30. Bc3 {[%emt 0:02:46]} Qc6 {[%emt 0:00:55]} (30... Rf5 $17 31. h3 h5) 31. Qe3 $1 $15 {[%emt 0:03:15]} Rd5 {[%emt 0:01:05]} (31... Rc4 $15 {is more appropriate.}) 32. Re1 {[%emt 0:01:39]} (32. Rxd5 $11 {keeps the balance.} Qxd5 33. Qa7) 32... Bf8 {[%emt 0:02:04]} 33. Qf3 {[%emt 0:02:05]} Bg7 $36 {[%emt 0:00:39][%mdl 2048] Dodges Qf6. White is under strong pressure.} 34. Re3 {[%emt 0:00:52]} Rc5 {[%emt 0:07:01]} 35. Qd1 {[%emt 0:02:18]} Bxc3 {[%emt 0:14:02]} 36. Qd8+ {[%emt 0:00:09]} Kg7 {[%emt 0:00:05] Loses the game.} 37. Rxc3 {[%emt 0:00:04]} Rxc3 {[%emt 0:02:30]} 38. Qd4+ {[%emt 0:00:07] [#]} (38. bxc3 $142 Qxc3 39. h4) 38... e5 $1 $19 {[%emt 0:00:02]} 39. Qxe5+ {[%emt 0:00:10]} Qf6 {[%emt 0:00:03]} 40. Qxc3 {[%emt 0:00:07]} Qxc3 {[%emt 0:00:03]} 41. bxc3 {[%emt 0:00:03][%mdl 4096] Endgame. KP-KP} Kf6 {[%emt 0:00:04] Black is clearly winning.} 42. Kf1 {[%emt 0:00:16]} Ke5 {[%emt 0:00:17]} 43. Ke2 {[%emt 0:00:19]} Ke4 {[%emt 0:00:17]} 44. f3+ {[%emt 0:00:39] [#]} Kd5 $1 {[%emt 0:00:06]} 45. Kd3 {[%emt 0:00:09] [#]} b5 $1 {[%emt 0:00:10]} 46. Kd2 {[%emt 0:01:59]} Kc4 {[%emt 0:01:20]} 47. Kc2 {[%emt 0:00:04]} g5 {[%emt 0:01:48] Hoping for ...a5.} 48. Kb2 {[%emt 0:01:17]} f5 {[%emt 0:01:33] Weighted Error Value: White=0.39/Black=0.13 (very precise) .  Mistake:       	White=3     	Black=2      Inaccurate:     	White=4     	Black=1      OK:         	White=11    	Black=11     Best:        	---       	Black=2      Strong:       	White=1     	---        Brilliant:      	---       	Black=1} 0-1

[Event "1st Jeddah Young Masters 2024"]
[Site "Jeddah"]
[Date "2024.01.28"]
[Round "7.1"]
[White "Sadhwani, Raunak"]
[Black "Murzin, Volodar"]
[Result "1/2-1/2"]
[ECO "C55"]
[WhiteElo "2654"]
[BlackElo "2635"]
[Annotator "TA"]
[PlyCount "37"]
[EventDate "2024.01.24"]
[EventType "tourn"]
[SourceTitle "playchess.com"]
[Source "ChessBase"]
[SourceQuality "1"]
[TimeControl "5400+30"]

{[%evp 15,37,27,23,4,10,7,16,20,29,28,30,37,24,17,16,24,26,22,22,-3,-8,0,0,-4]} 1. e4 {[%emt 0:00:03]} e5 {[%emt 0:00:07]} 2. Nf3 {[%emt 0:00:31]} Nc6 {[%emt 0:00:09]} 3. Bc4 {[%emt 0:00:04]} Nf6 {[%emt 0:00:07]} 4. d3 {[%emt 0:00:05]} Be7 {[%emt 0:00:05]} 5. O-O {[%emt 0:00:06]} O-O {[%emt 0:00:10]} 6. Bb3 {[%emt 0:00:03]} d6 {[%emt 0:00:57]} 7. c3 {[%emt 0:00:19]} Na5 {[%emt 0:08:09]} 8. Bc2 {[%emt 0:00:20]} c5 {[%emt 0:00:05]} 9. d4 {[%emt 0:00:11]} cxd4 {[%emt 0:10:35]} 10. cxd4 {[%emt 0:00:07]} exd4 {[%emt 0:11:08]} 11. Nxd4 {[%emt 0:00:33]} Nc6 {[%emt 0:00:06]} 12. Nc3 {[%emt 0:04:29]} d5 {[%emt 0:00:46]} 13. Nxc6 {[%emt 0:08:17]} bxc6 {[%emt 0:00:09]} 14. exd5 {[%emt 0:00:06]} Nxd5 {[%emt 0:04:49]} 15. Qd3 {[%emt 0:00:36][%csl Gc2][%cal Rd3h7] [#]} g6 {[%emt 0:08:33]} 16. Nxd5 {[%emt 0:05:48]} Qxd5 {[%emt 0:00:37] The position is equal.} 17. Qxd5 {[%emt 0:01:47]} cxd5 {[%emt 0:00:06]} 18. Rd1 {[%emt 0:00:09]} Be6 {[%emt 0:01:51]} 19. Be3 {[%emt 0:01:10] Weighted Error Value: White=0.04 (flawless) /Black=0.03 (flawless) .  OK:         	White=6     	Black=3} 1/2-1/2

[Event "1st Jeddah Young Masters 2024"]
[Site "Jeddah"]
[Date "2024.01.28"]
[Round "7.2"]
[White "Erdogmus, Yagiz Kaan"]
[Black "Rey Martinez, Jaime"]
[Result "1-0"]
[ECO "B33"]
[WhiteElo "2524"]
[BlackElo "2342"]
[Annotator "TA"]
[PlyCount "71"]
[EventDate "2024.01.24"]
[EventType "tourn"]
[SourceTitle "playchess.com"]
[Source "ChessBase"]
[SourceQuality "1"]
[TimeControl "5400+30"]

{[%evp 22,71,18,18,18,0,14,16,13,24,8,8,42,52,46,39,95,97,72,58,116,112,92,36,65,41,137,132,129,121,127,83,260,258,252,219,251,262,370,364,383,319,501,483,616,613,559,500,1127,1095,1012,1045]} 1. e4 {[%emt 0:00:02]} c5 {[%emt 0:01:28]} 2. Nf3 {[%emt 0:00:07][%cal Bg1f3,Bf3d4,Bd4b5,Bb5a3,Ba3c4][%mdl 32]} Nc6 {[%emt 0:00:49]} 3. d4 {[%emt 0:00:21]} cxd4 {[%emt 0:00:09]} 4. Nxd4 {[%emt 0:00:04]} Nf6 {[%emt 0:01:25]} 5. Nc3 {[%emt 0:00:16]} e5 {[%emt 0:00:13]} 6. Ndb5 {[%emt 0:00:05]} d6 {[%emt 0:00:14]} 7. Nd5 {[%emt 0:00:21]} Nxd5 {[%emt 0:00:14]} 8. exd5 {[%emt 0:00:05]} Nb8 {[%emt 0:00:29]} 9. a4 {[%emt 0:00:50]} a6 {[%emt 0:02:35]} 10. Na3 {[%emt 0:02:16]} Be7 {[%emt 0:02:56]} 11. Be2 {[%emt 0:05:02]} O-O {[%emt 0:05:10]} 12. O-O {[%emt 0:05:32]} Nd7 {[%emt 0:03:03]} 13. Nc4 {[%emt 0:09:22]} a5 {[%emt 0:11:25]} 14. Be3 {[%emt 0:19:42]} f5 {[%emt 0:07:18] Die Stellung ist ausgeglichen.} 15. f4 {[%emt 0:06:37]} exf4 {[%emt 0:03:06]} 16. Bxf4 {[%emt 0:00:48][%cal Oc2c3]} g5 {[%emt 0:00:56]} 17. Be3 {[%emt 0:00:50]} (17. Bxd6 Bxd6 18. Rc1 Bc5+ 19. Kh1 Nf6 $19) 17... Ne5 {[%emt 0:01:21]} 18. Bb6 {[%emt 0:10:08]} Qe8 {[%emt 0:10:10]} (18... Qd7 $14) 19. Nxe5 $1 $16 {[%emt 0:13:19]} (19. Bxa5 $2 Nxc4 20. Bxc4 Rxa5 $19) 19... dxe5 {[%emt 0:00:14]} 20. c4 {[%emt 0:05:17][%cal Bc2c4,Bc4c5][%mdl 32]} (20. d6 {mit weiteren Verwicklungen.} Qc6 21. Bc4+ Kg7 22. dxe7 Qxb6+ 23. Rf2) 20... Bb4 {[%emt 0:03:14]} ({Besser ist} 20... Ra6 $14 21. Bf2 Rh6) 21. c5 $36 {[%emt 0:01:01][%mdl 2048] Schwarz steht unter starkem Druck.} Bd7 {[%emt 0:01:20]} 22. Qb3 {[%emt 0:03:07]} (22. d6 $16) 22... Kh8 {[%emt 0:01:55]} 23. Qg3 {[%emt 0:03:45]} Qe7 {[%emt 0:03:50]} (23... Rc8 $14) 24. d6 {[%emt 0:00:49]} Qe6 {[%emt 0:10:22] [#]} 25. Bb5 $1 {[%emt 0:02:11]} Rf7 {[%emt 0:03:01]} 26. Rac1 {[%emt 0:03:25] Schwarz muss nun Bc4 beachten. Weiß hat aktiveres Spiel.} Qf6 $2 {[%emt 0:00:23] Verliert die Partie.} (26... f4 $16 27. Qd3 (27. Qxg5 Rg8 $16) (27. Bxd7 Rxd7 28. Qxg5 Bd2 $16) 27... e4 28. Qd4+ Kg8) 27. Bxd7 $18 {[%emt 0:01:31]} Rxd7 {[%emt 0:00:04] [#]} 28. Qd3 $1 {[%emt 0:00:05]} Rf8 {[%emt 0:02:56]} 29. Qb5 {[%emt 0:00:26][%csl LRa5,LRd7]} Rff7 {[%emt 0:00:36]} (29... Qg7 {kämpft weiter.} 30. Bxa5 Bxa5) 30. Bxa5 {[%emt 0:00:45]} Bxa5 {[%emt 0:00:04]} 31. Qxa5 {[%emt 0:00:09]} f4 {[%emt 0:01:58]} (31... Kg7 $142 32. Qc3 Rd8) 32. Qc3 {[%emt 0:00:19] Weiß steht klar auf Gewinn.} Qe6 {[%emt 0:00:56]} 33. Rce1 {[%emt 0:00:45]} Rf5 {[%emt 0:00:10]} 34. Re4 {[%emt 0:03:01]} Rdf7 {[%emt 0:01:03]} (34... Kg7 $142 35. b4 Qd5) 35. Rfe1 {[%emt 0:00:53][%cal Re4e5]} f3 {[%emt 0:00:12]} 36. gxf3 {[%emt 0:00:28] Gewichteter Fehlerwert: Weiß=0.12 (sehr präzise) /Schwarz=0.52.  Verlustzug:     	---       	Schwarz=1     Fehler:       	Weiß=1     	Schwarz=5     Ungenau:       	Weiß=1     	Schwarz=2     OK:         	Weiß=10    	Schwarz=6     Bester:       	Weiß=2     	---        Stark:        	Weiß=2     	---} (36. Rxe5 {führt zum Matt.} f2+ 37. Kf1 fxe1=Q+ (37... fxe1=R+ {wird mattgesetzt.} 38. Kxe1 Rxe5+ 39. Kd2 Rf2+ 40. Kd3 Qd5+ 41. Qd4) 38. Kxe1 Rxe5+ (38... Qxe5+ $2 39. Kd2 $19) 39. Kd2 Rf2+ 40. Kd3 Qd5+ (40... Rxg2 41. Qd4 Qb3+ 42. Qc3 Qd5+ 43. Qd4) 41. Qd4 Rd2+ (41... Qxc5 $2 42. Qxc5 Rxc5 43. Kd4 $19) 42. Kxd2 Qxd4+ 43. Kc2 Qc4+ (43... Rxc5+ {ist ein Selbstmatt.} 44. Kb3 Rc4 45. a5 Qd3+ 46. Ka2 Ra4#) 44. Kd2 Re2+ 45. Kd1 Qc2#) 1-0

[Event "1st Jeddah Young Masters 2024"]
[Site "Jeddah"]
[Date "2024.01.28"]
[Round "7.3"]
[White "Woodward, Andy"]
[Black "Seemann, Jakub"]
[Result "1-0"]
[ECO "D20"]
[WhiteElo "2501"]
[BlackElo "2439"]
[Annotator "RC"]
[PlyCount "150"]
[EventDate "2024.01.24"]
[EventType "tourn"]
[SourceTitle "playchess.com"]
[Source "ChessBase"]
[SourceQuality "1"]
[TimeControl "5400+30"]

1. d4 {[%emt 0:00:05]} d5 {[%emt 0:00:20]} 2. c4 {[%emt 0:00:08]} dxc4 {[%emt 0:00:15]} 3. e4 {[%emt 0:02:07]} b5 {[%emt 0:00:04]} 4. a4 {[%emt 0:00:47]} c6 {[%emt 0:00:03]} 5. axb5 {[%emt 0:00:13]} cxb5 {[%emt 0:00:03]} 6. Nc3 {[%emt 0:00:17]} Qb6 {[%emt 0:00:04]} 7. b3 {[%emt 0:00:56]} e6 {[%emt 0:00:20]} 8. bxc4 {[%emt 0:00:11]} Bb4 {[%emt 0:00:06]} 9. Bd2 {[%emt 0:00:17]} bxc4 {[%emt 0:00:06]} 10. Bxc4 {[%emt 0:00:13]} Ne7 {[%emt 0:00:18]} 11. Nge2 {[%emt 0:01:48]} O-O {[%emt 0:08:50]} 12. O-O {[%emt 0:01:55]} a5 {[%emt 0:02:39]} 13. Na4 {[%emt 0:06:59]} Qc6 {[%emt 0:17:50]} 14. Bd3 {[%emt 0:00:44]} Ba6 {[%emt 0:03:56]} 15. Rc1 {[%emt 0:11:58]} Bxd3 {[%emt 0:06:31]} 16. Rxc6 {[%emt 0:15:09]} Nbxc6 {[%emt 0:00:19]} 17. Bxb4 {[%emt 0:14:07]} Bxe2 {[%emt 0:00:38]} 18. Qxe2 {[%emt 0:00:11]} axb4 {[%emt 0:00:06]} 19. Nb6 {[%emt 0:01:27]} Rad8 {[%emt 0:01:58]} 20. d5 {[%emt 0:03:34]} exd5 {[%emt 0:00:10]} 21. e5 {[%emt 0:02:59]} Kh8 {[%emt 0:18:05]} 22. f4 {[%emt 0:01:42]} Rfe8 {[%emt 0:12:34]} 23. Qd3 {[%emt 0:06:45]} Rb8 {[%emt 0:03:41]} 24. Nd7 {[%emt 0:00:42]} Rb7 {[%emt 0:00:02]} 25. Nc5 {[%emt 0:01:17]} Ra7 {[%emt 0:00:01]} 26. Qd2 {[%emt 0:15:30]} Rb8 {[%emt 0:03:33]} 27. Rb1 {[%emt 0:01:28]} Rba8 {[%emt 0:01:04]} 28. Qd1 {[%emt 0:00:45]} Ra2 {[%emt 0:04:30]} 29. Nb7 {[%emt 0:02:33]} R8a3 {[%emt 0:05:12]} 30. Nd6 {[%emt 0:01:08]} Kg8 {[%emt 0:02:24]} 31. Qh5 {[%emt 0:02:13]} g6 {[%emt 0:02:17]} 32. Qg5 {[%emt 0:00:08]} Ra1 {[%emt 0:00:19]} 33. Rxa1 {[%emt 0:00:33]} Rxa1+ {[%emt 0:00:01]} 34. Kf2 {[%emt 0:00:01]} Ra8 {[%emt 0:00:11]} 35. Qf6 {[%emt 0:01:01]} Rf8 {[%emt 0:00:07]} 36. Ke1 {[%emt 0:01:44]} b3 {[%emt 0:04:12]} 37. Kd2 {[%emt 0:00:09]} d4 {[%emt 0:00:02]} 38. e6 {[%emt 0:00:33]} fxe6 {[%emt 0:00:08]} 39. Qxe6+ {[%emt 0:00:04]} Kg7 {[%emt 0:00:31]} 40. f5 {[%emt 0:01:18]} gxf5 {[%emt 0:02:07]} 41. Qxb3 {[%emt 0:00:26]} Kf6 {[%emt 0:01:05]} 42. Nc4 {[%emt 0:00:46]} Rg8 {[%emt 0:00:36]} 43. Qh3 {[%emt 0:00:14]} Ke6 {[%emt 0:00:44]} 44. g3 {[%emt 0:02:10]} Kd5 {[%emt 0:00:43]} 45. Nb6+ {[%emt 0:01:09]} Kc5 {[%emt 0:00:02]} 46. Na4+ {[%emt 0:00:06]} Kb4 {[%emt 0:00:37]} 47. Nb2 {[%emt 0:00:06]} Ra8 {[%emt 0:02:15]} 48. Qf1 {[%emt 0:00:48]} Kc5 {[%emt 0:01:06]} 49. Nd3+ {[%emt 0:00:22]} Kd6 {[%emt 0:00:37]} 50. Qf4+ {[%emt 0:00:14]} Kd5 {[%emt 0:01:15]} 51. Nb4+ {[%emt 0:00:59]} Kc4 {[%emt 0:00:06]} 52. Nc2 {[%emt 0:00:04]} Ra5 {[%emt 0:01:10]} 53. Qd6 {[%emt 0:02:08]} Rd5 {[%emt 0:00:20]} 54. Qe6 {[%emt 0:00:19]} Kc5 {[%emt 0:00:13]} 55. Ne1 {[%emt 0:00:02]} Kb6 {[%emt 0:00:41]} 56. Nd3 {[%emt 0:00:25]} Ra5 {[%emt 0:00:11]} 57. h4 {[%emt 0:00:38]} h5 {[%emt 0:00:22]} 58. Nf4 {[%emt 0:00:23]} Kc5 {[%emt 0:00:14]} 59. Qb3 {[%emt 0:00:36]} Rb5 {[%emt 0:00:51]} 60. Qa3+ {[%emt 0:00:20]} Kc4 {[%emt 0:00:58]} 61. Nxh5 {[%emt 0:00:34]} Rb3 {[%emt 0:00:42]} 62. Qa6+ {[%emt 0:00:36]} Kc5 {[%emt 0:00:19]} 63. Nf4 {[%emt 0:00:30]} Rb2+ {[%emt 0:00:44]} 64. Kc1 {[%emt 0:00:26]} Rh2 {[%emt 0:00:03]} 65. Qa3+ {[%emt 0:00:29]} Kc4 {[%emt 0:00:34]} 66. Qd6 {[%emt 0:00:41]} Rh1+ {[%emt 0:00:53]} 67. Kd2 {[%emt 0:00:01]} Rh2+ {[%emt 0:00:14]} 68. Ke1 {[%emt 0:00:10]} Rh1+ {[%emt 0:00:34]} 69. Kf2 {[%emt 0:00:01]} Rh2+ {[%emt 0:00:39]} 70. Kf3 {[%emt 0:00:56]} Rb2 {[%emt 0:00:22]} 71. Qe6+ {[%emt 0:00:13]} Kb5 {[%emt 0:00:34]} 72. Nd3 {[%emt 0:00:43]} Rd2 {[%emt 0:00:29]} 73. Qb3+ {[%emt 0:00:05]} Ka5 {[%emt 0:00:09]} 74. Kf4 {[%emt 0:00:12]} Rh2 {[%emt 0:00:40]} 75. Kg5 {[%emt 0:00:25]} Re2 {[%emt 0:00:31]} 1-0

[Event "1st Jeddah Young Masters 2024"]
[Site "Jeddah"]
[Date "2024.01.28"]
[Round "7.4"]
[White "Oro, Faustino"]
[Black "Klimkowski, Jan"]
[Result "1/2-1/2"]
[ECO "B51"]
[WhiteElo "2357"]
[BlackElo "2531"]
[Annotator "TA"]
[PlyCount "65"]
[EventDate "2024.01.24"]
[EventType "tourn"]
[SourceTitle "playchess.com"]
[Source "ChessBase"]
[SourceQuality "1"]
[TimeControl "5400+30"]

{[%evp 9,65,14,32,23,21,11,66,57,48,54,44,35,37,45,53,45,160,152,150,151,141,145,169,166,166,127,103,66,150,145,140,148,144,146,145,140,151,0,149,57,62,62,49,63,58,47,91,90,84,88,93,-227,0,0,0,0,0,0]} 1. e4 {[%emt 0:00:05]} c5 {[%emt 0:00:22]} 2. Nf3 {[%emt 0:00:08]} d6 {[%emt 0:00:10]} 3. Bb5+ {[%emt 0:00:07]} Nd7 {[%emt 0:00:08]} 4. O-O {[%emt 0:00:08]} a6 {[%emt 0:00:15][%cal Ba7a6,Ba6b5][%mdl 32]} 5. Bd3 {[%emt 0:00:07]} Ngf6 {[%emt 0:00:21]} 6. c3 {[%emt 0:00:13]} b5 {[%emt 0:00:29]} 7. a4 {[%emt 0:00:12]} c4 {[%emt 0:00:45]} ({Black should try} 7... Bb7 $11) 8. Bc2 {[%emt 0:00:05] White is slightly better.} Bb7 {[%emt 0:00:27]} 9. axb5 {[%emt 0:00:09]} axb5 {[%emt 0:00:27]} 10. Rxa8 {[%emt 0:00:17]} Qxa8 {[%emt 0:01:30]} 11. Na3 {[%emt 0:00:23]} Bxe4 {[%emt 0:08:07]} 12. Bxe4 {[%emt 0:00:19]} Nxe4 {[%emt 0:15:22]} (12... Qxe4 $14 13. Nxb5 e5) 13. d3 $1 $16 {[%emt 0:07:13]} (13. Nxb5 $6 Qb7 14. Qa4 d5 $11) 13... cxd3 {[%emt 0:01:29][%cal Ob5b4]} 14. Nxb5 {[%emt 0:00:27]} (14. Qxd3 e5 $14) 14... Qb7 {[%emt 0:08:48] Wards off Nc7+} 15. Qxd3 {[%emt 0:02:27]} Nec5 {[%emt 0:15:07]} 16. Qe2 {[%emt 0:02:47]} e5 {[%emt 0:05:01]} 17. Be3 {[%emt 0:08:18] Ra1 is the strong threat.} Be7 {[%emt 0:04:18]} 18. Bxc5 {[%emt 0:03:33]} Nxc5 {[%emt 0:08:34]} (18... dxc5 $14 19. Ra1 (19. Nxe5 Nxe5 20. Qxe5 Qxb5 $14) 19... O-O) 19. Ra1 $1 {[%emt 0:01:36][%cal Bf1a1,Ba1a7,Ba7b7][%mdl 32]} Ne6 {[%emt 0:04:44]} 20. Qc4 {[%emt 0:19:25] Strongly threatening Ra7.} Qb6 {[%emt 0:06:56]} (20... O-O $2 21. Ra7 Qb6 22. Rxe7 $18) 21. Ra7 {[%emt 0:05:47] And now Qc8+ would win.} Bd8 {[%emt 0:04:43] [#]} 22. Rb7 $3 {[%emt 0:01:18][%mdl 512]} Qa6 {[%emt 0:00:04]} 23. Ra7 {[%emt 0:01:07]} Qb6 {[%emt 0:00:03]} 24. h3 {[%emt 0:10:37]} ({Better is} 24. Nd2 $16) 24... O-O $14 {[%emt 0:00:45]} 25. Rd7 {[%emt 0:00:49]} e4 {[%emt 0:02:03]} 26. Nfd4 {[%emt 0:00:46]} Nxd4 {[%emt 0:03:42]} 27. cxd4 {[%emt 0:00:24]} (27. Nxd4 Qxb2 28. g3 e3 29. fxe3 Qd2 $17) 27... Qa5 {[%emt 0:01:09][%cal Oe4e3]} 28. Nxd6 {[%emt 0:03:27][%cal Rd7f7]} Qe1+ {[%emt 0:01:06]} 29. Qf1 {[%emt 0:00:39] White has more active pieces.} Qd2 {[%emt 0:00:39] [#]} 30. Nxf7 $2 {[%emt 0:06:16][%mdl 8192] [#]} Bh4 $2 {[%emt 0:01:38]} (30... e3 $1 $19 {[%cal Re3e2] aiming for ...e2.} 31. fxe3 (31. Nxd8 $2 {too greedy.} e2 $19) 31... Qxe3+ (31... Bf6 $2 32. Qc4 $18) 32. Kh1 Be7) 31. g3 $1 $11 {[%emt 0:09:42] The position is equal.} e3 {[%emt 0:01:37] ...e2 would now be deadly.} 32. gxh4 {[%emt 0:00:10] Threatens to win with fxe3.} ({Wrong is} 32. fxe3 $2 Bxg3 33. Qf5 Qxe3+ (33... Qxb2 34. Nh6+ gxh6 35. Qxh7#) 34. Kg2 Bf4 $19) 32... e2 {[%emt 0:01:37]} 33. Nh6+ $1 {[%emt 0:00:10] White really could win this.   Weighted Error Value: White=0.33/Black=0.26 (precise) .  Loses game:     	White=1     	---        Missed win:     	---       	Black=1      Mistake:       	White=1     	Black=3      Inaccurate:     	White=1     	Black=1      OK:         	White=7     	Black=12     Best:        	White=5     	Black=4      Strong:       	White=4     	---} 1/2-1/2

[Event "1st Jeddah Young Masters 2024"]
[Site "Jeddah"]
[Date "2024.01.28"]
[Round "7.5"]
[White "Pranav Vijay"]
[Black "Francisco Guecamburu, Candela Be"]
[Result "1-0"]
[ECO "A37"]
[WhiteElo "2252"]
[BlackElo "2295"]
[Annotator "NA RC"]
[PlyCount "103"]
[EventDate "2024.01.24"]
[EventType "tourn"]
[SourceTitle "playchess.com"]
[Source "ChessBase"]
[SourceQuality "1"]
[TimeControl "5400+30"]

1. Nf3 {[%emt 0:04:32]} c5 {[%emt 0:00:49]} 2. g3 {[%emt 0:01:05]} Nc6 {[%emt 0:01:08]} 3. Bg2 {[%emt 0:00:43]} g6 {[%emt 0:01:58]} 4. O-O {[%emt 0:00:44]} Bg7 {[%emt 0:00:49]} 5. c4 {[%emt 0:00:37]} d6 {[%emt 0:01:26]} 6. Nc3 {[%emt 0:00:28]} e5 {[%emt 0:02:07]} 7. d3 {[%emt 0:00:36]} Nge7 {[%emt 0:01:22]} 8. a3 {[%emt 0:01:52]} a5 {[%emt 0:04:52]} 9. Rb1 {[%emt 0:04:52]} h6 {[%emt 0:12:49]} 10. Ne1 {[%emt 0:12:03]} Be6 {[%emt 0:00:53]} 11. Nd5 {[%emt 0:09:21]} Rb8 {[%emt 0:05:22]} 12. Nxe7 {[%emt 0:22:15]} Nxe7 {[%emt 0:13:40]} 13. b4 {[%emt 0:01:42]} axb4 {[%emt 0:01:18]} 14. axb4 {[%emt 0:00:10]} b6 {[%emt 0:09:25]} 15. Nc2 {[%emt 0:17:27]} O-O {[%emt 0:05:35]} 16. Na3 {[%emt 0:03:12]} Qd7 {[%emt 0:04:07]} 17. Re1 {[%emt 0:04:18]} Nc6 {[%emt 0:09:30]} 18. Bd2 {[%emt 0:00:45]} Rfc8 {[%emt 0:09:18]} 19. Nb5 {[%emt 0:02:29]} Kh7 {[%emt 0:02:00]} 20. Ra1 {[%emt 0:03:33]} d5 {[%emt 0:01:27]} 21. cxd5 {[%emt 0:02:37]} Bxd5 {[%emt 0:00:02]} 22. Bxd5 {[%emt 0:00:35]} Qxd5 {[%emt 0:00:06]} 23. Nc3 {[%emt 0:01:04]} Qd7 {[%emt 0:04:50]} 24. bxc5 {[%emt 0:00:48]} bxc5 {[%emt 0:00:01]} 25. Ra4 {[%emt 0:00:22]} Nd4 {[%emt 0:00:54]} 26. Rc4 {[%emt 0:01:20]} Rb4 {[%emt 0:01:18]} 27. Nd5 {[%emt 0:00:58]} Rxc4 {[%emt 0:00:33]} 28. dxc4 {[%emt 0:00:03]} Qg4 {[%emt 0:01:10]} 29. Kg2 {[%emt 0:03:49]} Nf5 {[%emt 0:03:43]} 30. h3 {[%emt 0:00:35]} Qd4 {[%emt 0:00:52]} 31. Qc2 {[%emt 0:00:33]} Rb8 {[%emt 0:00:48]} 32. Bc1 {[%emt 0:00:31]} Qa1 {[%emt 0:00:45]} 33. Bd2 {[%emt 0:00:25]} Qd4 {[%emt 0:00:39]} 34. Bc1 {[%emt 0:00:21]} Qa1 {[%emt 0:00:01]} 35. e3 {[%emt 0:00:27]} Qb1 {[%emt 0:01:07]} 36. Re2 {[%emt 0:00:39]} Nd6 {[%emt 0:00:23]} 37. Ba3 {[%emt 0:00:30]} Qa1 {[%emt 0:01:18]} 38. Bxc5 {[%emt 0:00:33]} e4 {[%emt 0:00:14]} 39. Bxd6 {[%emt 0:00:24]} Rb2 {[%emt 0:00:05]} 40. Qxe4 {[%emt 0:00:37]} Rxe2 {[%emt 0:00:03]} 41. Qf3 {[%emt 0:00:21]} Re1 {[%emt 0:00:38]} 42. Qxf7 {[%emt 0:00:31]} Rg1+ {[%emt 0:00:21]} 43. Kf3 {[%emt 0:00:02]} Qd1+ {[%emt 0:00:08]} 44. Kf4 {[%emt 0:00:01]} g5+ {[%emt 0:01:04]} 45. Kf5 {[%emt 0:00:01]} Qd3+ {[%emt 0:00:31]} 46. e4 {[%emt 0:00:40]} Qd4 {[%emt 0:01:27]} 47. Nf6+ {[%emt 0:01:48]} Qxf6+ {[%emt 0:00:07]} 48. Qxf6 {[%emt 0:00:04]} Bxf6 {[%emt 0:00:04]} 49. Kxf6 {[%emt 0:00:04]} Rf1 {[%emt 0:00:50]} 50. c5 {[%emt 0:00:15]} Rxf2+ {[%emt 0:00:06]} 51. Ke6 {[%emt 0:00:04]} Rc2 {[%emt 0:00:22]} 52. Kd7 {[%emt 0:00:08]} 1-0